Cogmind - Beta 13 @@@ ROGUE MODE // 2024.04.28 @ 17:11:24 Player: MiNathan Result: Destroyed by G-47 Trooper with Particle Gun Performance ------------- Evolutions (2) 1000 Regions Visited (6) 1200 Robots Destroyed (63) 315 Value Destroyed (1580) 1580 Prototype IDs (11) 220 Alien Tech Used (0) 0 Bonus (332) 332 TOTAL SCORE: 4647 Bonus ------- High Alert Combat Kills 37 Follower Combat Kills 14 Aligned with FarCom 300 Friendly Fire -19 Cogmind --------- Core Integrity 0/550 Matter 300/300 Energy 99/100 System Corruption 8% Temperature Cool (9) Movement Core (50) Location -8/Materials Parts ------- > --- POWER (1) -------- (None) > --- PROPULSION (4) --- (None) > --- UTILITY (4) ------ Advanced Visual Processing Unit Improved Signal Interpreter Trap Reconfigurator > --- WEAPON (2) ------- (None) > --- INVENTORY (5) ---- (None) Peak State ------------ > --- POWER ------------ Improved Ion Engine > --- PROPULSION ------- Flying Fortress v7 > --- UTILITY ---------- Weight Redist. System Signal Interpreter Modified TNC Hacking Suite > --- WEAPON ----------- Heavy EM Pulse Gun Heavy Assault Rifle > --- INVENTORY -------- Advanced Visual Processing Unit Trap Reconfigurator [Rating: 51] Favorites ----------- Power Improved Ion Engine Engine Improved Ion Engine Power Core Light Nuclear Core Propulsion Improved Flight Unit Treads Light Treads Leg Aluminum Leg Hover Unit Improved Hover Unit Flight Unit Improved Flight Unit Utility Hacking Suite Device Weight Redist. System Processor Signal Interpreter Hackware Hacking Suite Weapon Heavy Assault Rifle Energy Gun Heavy EM Pulse Gun Energy Cannon Particle Cannon Ballistic Gun Heavy Assault Rifle Ballistic Cannon Heavy Assault Cannon Launcher Grenade Launcher Special Melee Weapon Datajack Build | -11 -10 -9 -9 -9 -8 -8 ------- Run | Yrd Mat Mat Min Exi Min Mat Slots Evolved 4 | . . 2 . . . 2 Power . | . . . . . . . Propulsion 2 | . . . . . . 2 Utility 2 | . . 2 . . . . Weapon . | . . . . . . . Parts Attached 59 | 5 18 17 1 4 . 14 Power 7 | 1 2 2 . . . 2 Engine 5 | 1 1 1 . . . 2 Core 2 | . 1 1 . . . . Reactor . | . . . . . . . Propulsion 17 | 2 8 4 . . . 3 Treads 5 | 2 1 . . . . 2 Leg 3 | . 3 . . . . . Wheel . | . . . . . . . Hover 4 | . 4 . . . . . Flight 5 | . . 4 . . . 1 Utility 15 | . 2 5 1 4 . 3 Device 8 | . 1 2 1 3 . 1 Storage . | . . . . . . . Processor 5 | . . 2 . 1 . 2 Hackware 2 | . 1 1 . . . . Protection . | . . . . . . . Artifact . | . . . . . . . Weapon 20 | 2 6 6 . . . 6 Energy Gun 2 | . . 1 . . . 1 Energy Cannon 6 | . 2 1 . . . 3 Ballistic Gun 7 | 2 1 3 . . . 1 Ballistic Cannon 1 | . . . . . . 1 Launcher 1 | . 1 . . . . . Special Weapon . | . . . . . . . Impact Weapon . | . . . . . . . Slashing Weapon . | . . . . . . . Piercing Weapon . | . . . . . . . Special Melee Weapon 3 | . 2 1 . . . . Unidentified Prototypes 4 | . . 1 . 2 . 1 Parts Lost 17 | . 2 1 . . . 14 Power 3 | . 1 . . . . 2 Propulsion 3 | . . . . . . 3 Utility 4 | . . 1 . . . 3 Weapon 7 | . 1 . . . . 6 Highest Loss Streak 8 | . 1 1 . . . 8 To Critical Strikes . | . . . . . . . Average Slot Usage (%) 82 | . 74 80 100 100 100 56 Engine 9 | . 8 7 11 11 11 8 Core 2 | . 5 3 . . . . Treads 6 | . 17 . . . . 3 Leg 2 | . 7 . . . . . Hover 1 | . 2 . . . . . Flight 9 | . . 2 22 22 22 5 Device 9 | . 4 6 22 16 11 7 Processor 11 | . . 17 11 16 22 17 Hackware 9 | . 4 20 11 11 11 5 Energy Gun 4 | . . 3 11 11 11 2 Energy Cannon 2 | . 4 7 . . . 1 Ballistic Gun 9 | . 10 9 11 11 11 5 Special Melee Weapon 2 | . 6 1 . . . . Naked Turns . | . . . . . . . Heaviest Build 20 | 9 11 14 14 14 13 20 Greatest Support 56 | 40 40 16 16 16 16 56 Greatest Overweight (x) 4 | . . 4 . 1 . 4 Average Overweight (x) . | . . 1 . . . . Largest Inventory Capacity 5 | 5 5 5 5 5 5 5 Average Capacity 5 | 5 5 5 5 5 5 5 Most Carried 5 | 5 5 5 4 5 5 5 Average Carried 3 | 1 2 3 4 4 5 1 Final Capacity 5 | 5 5 5 5 5 5 5 Final Carried 5 | . 4 4 4 5 5 . Class Distribution -------------------- 55% | Scavenger-Mutant 30% | Mutant 14% | Hacker-Mutant Dominant Class ---------------- Mutant | -10/Materials Hacker-Mutant | -9/Materials Scavenger-Mutant | -9/Mines Scavenger-Mutant | -9/Exiles Scavenger-Mutant | -8/Mines Mutant | -8/Materials Resources | -11 -10 -9 -9 -9 -8 -8 ----------- Run | Yrd Mat Mat Min Exi Min Mat Matter Collected 1439 | 234 489 246 102 . . 368 Remotely . | . . . . . . . Salvage Created 2341 | . 928 426 170 . . 817 Parts 141 | . 59 26 11 . . 45 Haulers Intercepted 1 | . . 1 . . . . Recyclers Shooed 1 | . . . . . . 1 Parts Field Recycled . | . . . . . . . Retrieved Matter . | . . . . . . . Parts Self-Destructed . | . . . . . . . Prevented . | . . . . . . . Kills | -11 -10 -9 -9 -9 -8 -8 ------- Run | Yrd Mat Mat Min Exi Min Mat Combat Hostiles Destroyed 43 | . 16 6 5 . . 16 Melee 1 | . . . . . . 1 Guns 31 | . 14 4 5 . . 8 Cannons 11 | . 2 2 . . . 7 Classes Destroyed 13 | . 7 2 . . . 4 Worker 3 | . 3 . . . . . Builder 2 | . 2 . . . . . Hauler 1 | . . 1 . . . . Recycler 5 | . 3 1 . . . 1 Mechanic 1 | . . . . . . 1 Operator 3 | . 2 . . . . 1 Watcher 5 | . 2 2 . . . 1 Swarmer 13 | . 3 2 2 . . 6 Grunt 25 | . 13 3 3 . . 6 Brawler 1 | . . . . . . 1 Sentry 2 | . . 1 . . . 1 Hunter 1 | . . . . . . 1 Heavy 1 | . . . . . . 1 Best Kill Streak 7 | . 6 3 5 . . 7 Combat Bots Only 5 | . 3 2 5 . . 5 Max Kills in Single Turn 1 | . 1 1 1 . . 1 Gunslinging . | . . . . . . . Exploded . | . . . . . . . Melee 1 | . . . . . . 1 Uniques/NPCs Destroyed . | . . . . . . . Combat | -11 -10 -9 -9 -9 -8 -8 -------- Run | Yrd Mat Mat Min Exi Min Mat Hostile Shots Fired 386 | . 113 19 17 . . 237 Missed 125 | . 39 9 8 . . 69 Damage Taken 3505 | . 789 164 102 . . 2450 Core 780 | . 175 14 37 . . 554 Absorbed by Shields . | . . . . . . . Core Remaining (%) 72 | 100 30 . . . 87 . Volleys Fired 243 | . 108 32 12 . . 91 Largest 2 | . 2 2 2 . . 2 Hottest 91 | . 90 91 68 . . 83 Shots Fired 322 | . 121 63 24 . . 114 Gun 243 | . 87 43 24 . . 89 Cannon 73 | . 28 20 . . . 25 Launcher 6 | . 6 . . . . . Special . | . . . . . . . Kinetic 210 | . 87 31 12 . . 80 Thermal 59 | . 28 20 . . . 11 Explosive 6 | . 6 . . . . . Electromagnetic 47 | . . 12 12 . . 23 Robot Hit Streak 17 | . 13 10 7 . . 17 Robot Miss Streak 3 | . 3 3 2 . . 3 Penetration Max . | . . . . . . . Secondary Targets 3 | . . 1 1 . . 1 Max Gunslinging Chain 1 | . . 1 1 . . 1 Shots Hit Robots 200 | . 76 35 13 . . 76 Core Hits 96 | . 37 13 5 . . 41 Critical Kills 1 | . . . . . . 1 Critical Parts Destroyed 2 | . 1 . . . . 1 Critical Strikes 6 | . 1 1 . . . 4 Burn 2 | . . . . . . 2 Destroy 3 | . 1 . . . . 2 Corrupt 1 | . . 1 . . . . Melee Attacks 3 | . 2 1 . . . . Impact . | . . . . . . . Slashing . | . . . . . . . Piercing . | . . . . . . . Sneak Attacks 2 | . 2 . . . . . Combat Hostiles . | . . . . . . . Follow-up Attacks . | . . . . . . . Damage Inflicted 3767 | . 1359 580 214 . . 1614 Guns 2154 | . 814 353 214 . . 773 Cannons 1265 | . 345 227 . . . 693 Explosions 240 | . 200 . . . . 40 Melee . | . . . . . . . Ramming 108 | . . . . . . 108 Kinetic 2163 | . 814 235 74 . . 1040 Thermal 745 | . 345 227 . . . 173 Explosive 200 | . 200 . . . . . Electromagnetic 551 | . . 118 140 . . 293 Impact . | . . . . . . . Slashing . | . . . . . . . Piercing . | . . . . . . . Highest Corruption 8 | . 1 . . . . 8 Average Corruption 2 | . 1 . . . . 5 Corruption Purged . | . . . . . . . Corruption Blocked . | . . . . . . . Effects 8 | . 3 . . . . 5 Matter Fused 1 | . . . . . . 1 Energy Discharges 2 | . 2 . . . . . Parts Fused 1 | . . . . . . 1 Data Loss (minor) 1 | . . . . . . 1 Data Loss (major) 2 | . . . . . . 2 Alerts 1 | . 1 . . . . . Overload Shots . | . . . . . . . Overflow Damage 47 | . 16 18 . . . 13 Projectiles 32 | . 1 18 . . . 13 Explosions 15 | . 15 . . . . . Melee . | . . . . . . . Knockbacks 3 | . . . . . . 3 Impact 1 | . . . . . . 1 Kinetic 2 | . . . . . . 2 Secondary . | . . . . . . . Self-Inflicted Damage 91 | . 31 . . . . 60 Shots 2 | . 1 . . . . 1 Rammed 42 | . . . . . . 42 Targets Rammed 42 | . . . . . . 42 Kicked . | . . . . . . . Crushed . | . . . . . . . Highest Temperature 296 | . 290 222 86 . . 296 Average Temperature 59 | . 66 55 35 . . 63 Received Heat Transfer 1347 | . 315 45 42 . . 945 Effects 3 | . . . . . . 3 Interference 3 | . . . . . . 3 Siege Activations . | . . . . . . . Robots Corrupted . | . . . . . . . Combat Hostiles . | . . . . . . . Parts Fried 1 | . . . . . . 1 Impact Corruptions . | . . . . . . . Robots Melted . | . . . . . . . Combat Hostiles . | . . . . . . . Parts Melted 3 | . . 1 . . . 2 Heat Transferred 1604 | . 703 407 . . . 494 Parts Sabotaged . | . . . . . . . Parts Stolen . | . . . . . . . Parts Stripped . | . . . . . . . Power Chain Reactions 1 | . . . . . . 1 Alert | -11 -10 -9 -9 -9 -8 -8 ------- Run | Yrd Mat Mat Min Exi Min Mat Peak Influence 544 | . 302 269 231 . . 544 Initial 97 | . . 97 61 . . . Average 140 | . 149 165 125 . . 269 Maximum Alert Level 2 | . 1 1 1 . . 2 Low Security (%) 66 | 100 72 54 63 . 100 31 Level 1 30 | . 27 45 36 . . 49 Level 2 2 | . . . . . . 19 Level 3 . | . . . . . . . Level 4 . | . . . . . . . Level 5 . | . . . . . . . High Security . | . . . . . . . Max Security . | . . . . . . . Squads Dispatched 10 | . 7 2 . . . 1 Investigation 7 | . 5 2 . . . . Extermination . | . . . . . . . Reinforcement 3 | . 2 . . . . 1 Assault . | . . . . . . . Garrison . | . . . . . . . Intercept . | . . . . . . . Searches Triggered . | . . . . . . . Construction Impeded . | . . . . . . . Haulers Reinforced . | . . . . . . . Active Scanning Responses . | . . . . . . . Cargo Convoy Interrupts . | . . . . . . . Stealth | -11 -10 -9 -9 -9 -8 -8 --------- Run | Yrd Mat Mat Min Exi Min Mat Distress Signals 8 | . 2 2 . . . 4 Communications Jammed . | . . . . . . . Distress Signals . | . . . . . . . Times Spotted 80 | . 26 10 7 . . 37 Peak Tracking Total 8 | . 4 4 3 . . 8 Tactical Retreats 9 | . 1 1 . . . 7 Traps | -11 -10 -9 -9 -9 -8 -8 ------- Run | Yrd Mat Mat Min Exi Min Mat Traps Triggered 5 | . 3 2 . . . . Indirectly . | . . . . . . . Trap Hack Attempts . | . . . . . . . Triggered . | . . . . . . . Disarmed 6 | . 6 . . . . . Reprogrammed . | . . . . . . . Reused . | . . . . . . . Traps Extracted . | . . . . . . . Installed . | . . . . . . . Triggered . | . . . . . . . Machines | -11 -10 -9 -9 -9 -8 -8 ---------- Run | Yrd Mat Mat Min Exi Min Mat Machines Disabled 3 | . . 2 1 . . . Max in Single Turn 1 | . . 1 1 . . . Machines Repaired . | . . . . . . . Machines Dismantled . | . . . . . . . Machines Sabotaged . | . . . . . . . Overloaded Fab Kills . | . . . . . . . Hacking | -11 -10 -9 -9 -9 -8 -8 --------- Run | Yrd Mat Mat Min Exi Min Mat Machines Accessed 10 | . 3 4 . . . 3 Terminals 8 | . 3 3 . . . 2 Fabricators . | . . . . . . . Repair Stations . | . . . . . . . Recycling Units 1 | . . . . . . 1 Scanalyzers 1 | . . 1 . . . . Garrison Access . | . . . . . . . Total Hacks 30 | . 10 12 . . . 8 Successful 22 | . 7 8 . . . 7 Failed 8 | . 3 4 . . . 1 Catastrophic . | . . . . . . . Database Lockouts . | . . . . . . . Manual 1 | . . . . 1 . . Terminals 24 | . 10 8 . . . 6 Fabricators . | . . . . . . . Repair Stations . | . . . . . . . Recycling Units 2 | . . . . . . 2 Scanalyzers 4 | . . 4 . . . . Garrison Access . | . . . . . . . Terminal Hacks 18 | . 7 6 . . . 5 Record 1 | . . . . . . 1 Prototype ID Bank 3 | . 1 1 . . . 1 Emergency Access Points 1 | . 1 . . . . . Terminal Index 1 | . 1 . . . . . Alert Level 1 | . . . . . . 1 Locate Traps 3 | . 2 1 . . . . Disarm Traps 1 | . 1 . . . . . Maintenance Status 1 | . . . . . . 1 Recall Investigation 1 | . . 1 . . . . Hauler Manifests 1 | . 1 . . . . . Registered Components 1 | . . 1 . . . . Zone Layout 3 | . . 2 . . . 1 Fabricator Hacks . | . . . . . . . Repair Station Hacks . | . . . . . . . Recycling Unit Hacks 2 | . . . . . . 2 Process 1 | . . . . . . 1 Retrieve Matter 1 | . . . . . . 1 Scanalyzer 2 | . . 2 . . . . Insert Component 1 | . . 1 . . . . Analyze 1 | . . 1 . . . . Garrison Access Hacks . | . . . . . . . Unauthorized Hacks . | . . . . . . . Terminals . | . . . . . . . Fabricators . | . . . . . . . Repair Stations . | . . . . . . . Recycling Units . | . . . . . . . Scanalyzers . | . . . . . . . Garrison Access . | . . . . . . . Data Cores Recovered 1 | . . . . . . 1 Used 1 | . . . . . . 1 Hacking Detections 9 | . 3 4 . . . 2 Full Trace Events 4 | . 3 1 . . . . Feedback Events 1 | . 1 . . . . . Corruption 1 | . 1 . . . . . Feedback Blocked . | . . . . . . . Robot Schematics Acquired . | . . . . . . . Robots Built . | . . . . . . . Authchips . | . . . . . . . Time . | . . . . . . . Total Robot Build Rating . | . . . . . . . Part Schematics Acquired 1 | . . 1 . . . . Parts Built . | . . . . . . . Authchips . | . . . . . . . Time . | . . . . . . . Total Part Build Rating . | . . . . . . . Parts Repaired . | . . . . . . . Time . | . . . . . . . Parts Recycled . | . . . . . . . Recycled Matter 7 | . . . . . . 7 Retrieved Matter 7 | . . . . . . 7 Retrieved Components . | . . . . . . . Parts Scanalyzed 1 | . . 1 . . . . Part Schematics Acquired 1 | . . 1 . . . . Parts Damaged . | . . . . . . . Bothacking | -11 -10 -9 -9 -9 -8 -8 ------------ Run | Yrd Mat Mat Min Exi Min Mat Used RIF Installer . | . . . . . . . Robots Hacked 2 | . 1 1 . . . . Non-combat 2 | . 1 1 . . . . Combat . | . . . . . . . Robot Hacks Applied 3 | . 2 1 . . . . parse_system 1 | . . 1 . . . . no_distress 2 | . 2 . . . . . Relay Couplers Released . | . . . . . . . Fabnet Peak Effective % . | . . . . . . . Robots Rewired . | . . . . . . . Allies Hacked . | . . . . . . . Hacks Repelled . | . . . . . . . Allies | -11 -10 -9 -9 -9 -8 -8 -------- Run | Yrd Mat Mat Min Exi Min Mat Total Allies 2 | . . . 2 . . . Largest Group 2 | . . . 2 1 . . Highest-Rated Group 46 | . . . 46 31 . . Highest-Rated Ally 31 | . . . 31 31 . . Total Orders . | . . . . . . . Ally Attacks 8 | . . . 8 . . . Total Damage 129 | . . . 129 . . . Kills 2 | . . . 2 . . . Allies Corrupted . | . . . . . . . Allies Melted . | . . . . . . . Intel | -11 -10 -9 -9 -9 -8 -8 ------- Run | Yrd Mat Mat Min Exi Min Mat Robot Analysis Total . | . . . . . . . Derelict Logs Recovered 1 | . . . 1 . . . Drone Launches . | . . . . . . . Drone Recoveries . | . . . . . . . Exploration | -11 -10 -9 -9 -9 -8 -8 ------------- Run | Yrd Mat Mat Min Exi Min Mat Turns Passed 3467 | 45 1064 671 480 232 510 465 Spaces Moved 2319 | 37 512 354 619 346 231 220 Core 264 | 21 . 181 . . . 62 Treads 295 | 16 260 . . . . 19 Legs 148 | . 148 . . . . . Wheels . | . . . . . . . Hover 139 | . 104 35 . . . . Flight 1473 | . . 138 619 346 231 139 Fastest Speed 37 | 50 56 37 37 37 37 50 Average Speed 77 | 97 127 144 37 38 37 66 Slowest Speed 250 | 160 160 250 37 107 37 250 Overloaded Moves . | . . . . . . . Propulsion Burnouts . | . . . . . . . Robots Hopped 8 | . . 1 2 . . 5 Cave-ins Triggered . | . . . . . . . Exploration Rate (%) 48 | 3 74 45 81 62 57 20 Regions Visited 6 Branch Regions 3 Pre-discovered Areas . | . . . . . . . Known Exits Taken 4 | . . 1 1 1 1 . Unknown Exits Taken 2 | 1 1 . . . . . Scrap Searched 1 | . . . 1 . . . Spaces Dug . | . . . . . . . Terrain Destroyed 44 | . 32 . . . . 12 Melee . | . . . . . . . Projectile 9 | . . . . . . 9 AOE 35 | . 32 . . . . 3 Terrain Rammed . | . . . . . . . Walls Destroyed . | . . . . . . . Machines Disabled . | . . . . . . . Actions | -11 -10 -9 -9 -9 -8 -8 --------- Run | Yrd Mat Mat Min Exi Min Mat Total 3657 | 46 802 455 842 447 654 411 Wait 905 | . 125 25 213 84 424 34 Move 2297 | 36 511 351 614 345 230 210 Hop 8 | . . 1 2 . . 5 Pick Up 59 | 5 23 15 . 6 . 10 Fast Attach 1 | . . 1 . . . . Attach 30 | 5 5 7 . 1 . 12 Detach 3 | . . 1 . . . 2 Swap 28 | . 13 9 1 3 . 2 Drop 38 | . 15 12 . 8 . 3 Fire 243 | . 108 32 12 . . 91 Melee 3 | . 2 1 . . . . Ram 36 | . . . . . . 36 Kick . | . . . . . . . Crush 6 | . . . . . . 6 Escape Stasis . | . . . . . . . Rewire . | . . . . . . . Trap . | . . . . . . . Miscellaneous . | . . . . . . . Route ------- -11/Scrapyard -10/Materials (discovered 3 exits: *Mat x2 / [*Min]) -9/Materials (discovered 2 exits: *Mat / *Min) -9/Mines (discovered 2 exits: *Mat / *Exi) -9/Exiles (discovered 2 exits: *Min x2) -8/Mines -8/Materials (discovered 1 exit: Fac) History --------- Turn | Location | Event 13 | -11/Scrapyard | Discovered new exit (range 14) 46 | -11/Scrapyard | Entered Materials 303 | -10/Materials | Build established: Mutant 454 | -10/Materials | Discovered new exit (range 10) 656 | -10/Materials | Core integrity fell below 50% 813 | -10/Materials | Discovered new exit (range 7) 1067 | -10/Materials | Discovered new exit (range 15) 1105 | -10/Materials | Build established: Scavenger-Mutant 1110 | -10/Materials | Entered another Materials area 1110 | -9/Materials | Evolved 2 slots: Utility x2 1516 | -9/Materials | Discovered new exit (range 8) 1597 | -9/Materials | Identified exit to Materials 1602 | -9/Materials | Build established: Hacker-Mutant 1745 | -9/Materials | Discovered new exit (range 7) 1747 | -9/Materials | Identified exit to Mines 1781 | -9/Materials | Entered Mines 1802 | -9/Mines | Assembled infested the area 2002 | -9/Mines | Build established: Scavenger-Mutant 2134 | -9/Mines | Discovered exit to Materials (range 5) 2206 | -9/Mines | Discovered new exit (range 5) 2207 | -9/Mines | Identified exit to Exiles 2261 | -9/Mines | Entered Exiles 2261 | -9/Exiles | Accompanied by 1 ally 2270 | -9/Exiles | Met 8R-AWN 2277 | -9/Exiles | Met EX-HEX 2291 | -9/Exiles | Led the pair of lost Derelicts to a safe place 2371 | -9/Exiles | Met EX-BIN 2375 | -9/Exiles | Aligned with FarCom system 2376 | -9/Exiles | Given EX-Vault access code 2384 | -9/Exiles | Opened EX-Vault 2387 | -9/Exiles | Found Prototype Processor 2388 | -9/Exiles | Identified Modified TNC 2395 | -9/Exiles | Found Prototype Device 2396 | -9/Exiles | Identified Trap Reconfigurator 2400 | -9/Exiles | Found Prototype Flight Unit 2418 | -9/Exiles | Warned to stay clear of 0b10 Research branches 2428 | -9/Exiles | Met EX-DEC 2446 | -9/Exiles | Discovered new exit (range 10) 2449 | -9/Exiles | Identified exit to Mines 2489 | -9/Exiles | Discovered exit to Mines (range 14) 2493 | -9/Exiles | Stole three prototypes: Modified TNC, Trap Reconfigurator, Flying Fortress v7 2493 | -9/Exiles | Entered Mines 3000 | -8/Mines | Discovered exit to Materials (range 6) 3003 | -8/Mines | Entered Materials 3003 | -8/Materials | Evolved 2 slots: Propulsion x2 3004 | -8/Materials | Identified exit to Factory 3005 | -8/Materials | Identified Flying Fortress v7 3304 | -8/Materials | Lost 8 parts (1p1n3u3w) 3337 | -8/Materials | Core integrity fell below 50% 3455 | -8/Materials | Core integrity fell below 20% 3468 | -8/Materials | Destroyed by G-47 Trooper with Particle Gun Last Messages --------------- Slammed into S-10 Pest. Destabilizing: System corrupted (+2). Slammed into S-10 Pest. Imp. Ion Engine destroyed. Slammed into G-47 Trooper. Destabilizing: System interference. Adv. Visual Processing Unit temporarily disabled. U-05 Engineer builds a Wall. Slammed into G-47 Trooper. Destabilizing: System corrupted (+1). Slammed into G-47 Trooper. U-05 Engineer builds a Wall. Slammed into G-47 Trooper. U-05 Engineer builds a Wall. Slammed into G-47 Trooper. Destabilizing: Core damaged (-11). Slammed into G-47 Trooper. U-05 Engineer builds a Wall. Slammed into G-47 Trooper. Map ----- +----------------------------------------------------+ | ??????????????? +?????????# #?????????????????? | | ???????????????# #?????????# #?????????????????? | | ???????????????# #?????????# #?????????????????? | | ???????????????# #?????????# #?????????????????? | | ???????????????# #?????????# #####?????????????? | | #+######+####### ########### #?????????????? | | """ # + #?????????????? | | "T" # ##### #?????????????? | | " " # #???? #?????????????? | | ????????# %+*! #???? #?????????????? | | ????????# w#! #????? #?????????????? | | ????????#!!! #########????? #?????????????? | | ????????#!!! ############ ?????????????? | | ????????#!!! ! ????????????? | | ????????# Y ???????????? | | ????????# ???????????? | | ????????######### ############# ###??????????? | | ????????????????# #?##########???????????????????? | | ????????????????# #?# """ #???????????????????? | | ?????????#?????## ### """"" #???????????????????? | | ##########"###### ### """"" #???????????????????? | | ! =# """"" #???????????????????? | | =%= / ! u """ #???????????????????? | | % w% # %% #???????????????????? | | ###"##############%%#%%s!%% #???????????????????? | | ??????????# """ %##%% %@%g #???????????????????? | | ??????????# "T" * ##%%%% #???????????????????? | | ??????????# ###########???????????????????? | | ??????????#! #?????????????????????????????? | | ??????????# #?????????????????????????????? | | ??????????# """"" #?????????????????????????????? | | ??????????# """"" #?????????????????????????????? | | ??????????# """"" #?????????????????????????????? | | ??????????# #?????????????????????????????? | | ??????????###/######?????????????????????????????? | | ?????????????????????????????????????????????????? | | ?????????????????????????????????????????????????? | | ?????????????????????????????????????????????????? | | ?????????????????????????????????????????????????? | | ?????????????????????????????????????????????????? | | ?????????????????????????????????????????????????? | | ?????????????????????????????????????????????????? | | ?????????????????????????????????????????????????? | | ?????????????????????????????????????????????????? | | ?????????????????????????????????????????????????? | | ?????????????????????????????????????????????????? | | ?????????????????????????????????????????????????? | | ?????????????????????????????????????????????????? | | ?????????????????????????????????????????????????? | | ?????????????????????????????????????????????????? | +----------------------------------------------------+ Best States ------------- Heat Dissipation 31 Energy Generation 14 Energy Capacity 265 Matter Stores 300 Matter Capacity 300 Sight Range 20 Robot Scan Range 14 Terrain Scan Density 10 Additional Mass Support 6 Evasion (%) 62 Targeting Accuracy 5 Recoil Reduction 2 Offensive Hacking 20 Item Schematics ----------------- Datajack | -9/Materials | Scanalyzed Robot Schematics ------------------ None Fabricated ------------ Nothing Alien Tech Used ----------------- None Achievements -------------- None Challenges ------------ None Game ------ Seed ThunderTachyonJammer Manual? 0 Play Time 00:29:41 Cumulative 6.9 hours Start 2024.04.28 @ 16:44:44 End 2024.04.28 @ 17:11:24 Sessions 1 Manual Loads 0 Difficulty Rogue Special Mode None Game No. 26 Rogue 12 Adventurer 14 Explorer 0 Win Type - Total 0 Types 0/0/0/0/0/0/0/0/0 Lore% 16 Gallery% 17 Achievement% 15 Wizard Run 0 Options --------- Layout 1 ASCII 0 Keyboard 0 Movement Mouse Keybinds 0 Fullscreen 2 Font 24/Proggy Map View 50x35 Zoom Use 0% Tactical HUD 0 Map Filters NONE Filters NONE Steam 1 RUN: 8a03d06a-2473-4a4d-9ecc-94b274f0c0ee